bitfinex/quotes_BTCUSD_20211001
["timestamp","ask_amount","ask_price","bid_price","bid_amount"]
[1633085093127,0.0046,47449.0,47445.0,0.00128653]
[1633085093325,0.0046,47449.0,47430.0,0.00124206]
[1633085093326,0.10042323,47448.0,47430.0,0.00124206]
[1633085093531,0.10042323,47448.0,47434.0,3.43484088]
[1633085093532,0.08055748,47438.0,47434.0,3.43484088]
[1633085093726,0.00699716,47443.0,47434.0,3.43484088]
[1633085093927,0.10510931,47448.0,47434.0,3.43484088]
[1633085094126,0.0046,47449.0,47435.0,0.00125386]
[1633085094327,0.10244707,47448.0,47435.0,0.00125386]
[1633085094527,0.10244707,47448.0,47434.0,3.08839548]
[1633085094528,0.5,47442.0,47434.0,3.08839548]
[1633085094727,0.41946333,47441.0,47434.0,3.08839548]
[1633085094927,0.18162557,47441.0,47434.0,3.08839548]
[1633085095128,1.59935405,47467.0,47434.0,3.08839548]
[1633085095129,0.095042,47460.0,47442.0,0.61614551]
[1633085095328,0.00635187,47466.0,47447.0,0.00123862]
[1633085095528,0.00412742,47449.0,47448.0,0.00129098]
[1633085095727,0.00412742,47449.0,47447.0,0.0012878]
[1633085095928,0.00372742,47449.0,47442.0,0.61614551]
[1633085096132,0.10230082,47448.0,47442.0,0.61614551]
[1633085096338,0.0012825,47475.0,47458.0,1.4090237]
[1633085096531,0.5,47471.0,47458.0,0.2590237]
[1633085096728,0.5,47461.0,47458.0,0.2590237]
[1633085096928,0.0064438,47462.0,47458.0,0.2590237]
[1633085097128,0.07467084,47464.0,47458.0,0.6119529]
[1633085097428,0.35613961,47473.0,47459.0,0.00368374]
[1633085097429,0.00040744,47466.0,47459.0,0.00368374]
[1633085097627,0.00127579,47462.0,47450.0,0.09045281]
[1633085097830,0.00127579,47462.0,47435.0,0.12289112]
[1633085097831,0.07051951,47438.0,47435.0,0.12289112]
[1633085098030,0.17810568,47434.0,47405.0,0.10517496]
[1633085098230,0.07454556,47412.0,47411.0,0.00122478]
[1633085098430,0.07454556,47412.0,47403.0,0.08772716]
[1633085098431,0.00120572,47404.0,47395.0,0.00128287]
[1633085098634,0.02454556,47412.0,47367.0,0.015]
[1633085098635,0.5,47403.0,47390.0,0.00127239]
[1633085098829,0.45577518,47402.0,47389.0,0.00123844]
[1633085099029,0.50537518,47402.0,47388.0,0.11385934]
[1633085099229,0.06450675,47401.0,47388.0,0.11385934]
[1633085099431,0.44986529,47389.0,47388.0,0.11385934]
[1633085099634,0.13017394,47403.0,47388.0,0.11509612]
[1633085099831,0.10448074,47401.0,47388.0,0.11385934]
[1633085100033,0.39060579,47402.0,47378.0,0.2499]
[1633085100034,0.5,47389.0,47378.0,0.2499]
[1633085100229,0.05681929,47388.0,47378.0,0.2499]
[1633085100438,0.03335665,47400.0,47378.0,0.2499]
[1633085100439,0.5,47406.0,47387.0,0.00124199]
[1633085100634,0.5,47406.0,47401.0,0.08965161]
[1633085100832,0.07552505,47422.0,47401.0,0.08965161]
[1633085100833,0.10811376,47439.0,47409.0,0.07073539]
[1633085101032,1.5e-06,47425.0,47424.0,0.44865695]
[1633085101241,0.10124717,47433.0,47424.0,0.34325076]
[1633085101431,0.0549585,47432.0,47424.0,0.34325076]
[1633085101631,0.10124717,47433.0,47425.0,0.27599476]
[1633085101832,0.10124717,47433.0,47432.0,0.00129639]
[1633085102131,0.10124717,47433.0,47424.0,0.34325076]
[1633085102132,0.16672689,47433.0,47424.0,0.34325076]
[1633085102334,0.03677343,47425.0,47389.0,0.00126121]
[1633085102532,0.38665327,47434.0,47416.0,0.00126093]
[1633085102731,0.38665327,47434.0,47428.0,0.00128002]
[1633085102732,0.09522252,47432.0,47428.0,0.00128002]
[1633085102930,0.34432395,47434.0,47416.0,0.10020426]
[1633085102931,0.07812498,47423.0,47416.0,0.10020426]
[1633085103131,0.07812498,47423.0,47409.0,0.07073539]
[1633085103132,0.4045885,47421.0,47409.0,0.07073539]
[1633085103530,0.00126775,47424.0,47410.0,0.08852741]
[1633085103733,0.33728502,47434.0,47433.0,1.503125]
[1633085103734,0.29347944,47434.0,47433.0,1.503125]
[1633085103935,2.0703746,47451.0,47434.0,0.28694944]
[1633085104132,0.10732218,47452.0,47449.0,0.00127751]
[1633085104333,0.10732218,47452.0,47434.0,0.28694944]
[1633085104334,0.19035128,47450.0,47434.0,0.14347944]
[1633085104530,0.03736146,47448.0,47444.0,0.00126835]
[1633085104732,0.02786302,47450.0,47444.0,0.00126835]
[1633085104930,0.02786302,47450.0,47434.0,0.14347944]
[1633085104931,0.5,47445.0,47434.0,0.14347944]
[1633085105135,0.05226451,47449.0,47434.0,0.14347944]
[1633085105136,0.07339771,47449.0,47444.0,0.0012926]
[1633085105332,0.02,47450.0,47448.0,0.0012255]
[1633085105633,0.02,47450.0,47449.0,0.00122076]
[1633085105634,0.11953608,47450.0,47449.0,0.00122076]
[1633085105834,0.26546851,47450.0,47433.0,0.0012073]
[1633085106033,0.5,47439.0,47423.0,0.00125362]
[1633085106232,0.210955,47437.0,47422.0,0.00126312]
[1633085106436,0.210955,47437.0,47434.0,0.14274065]
[1633085106630,0.210955,47437.0,47409.0,0.07201523]
[1633085106631,0.95,47435.0,47409.0,0.07201523]
[1633085106834,0.210992,47432.0,47411.0,0.00127781]
[1633085107032,0.07491523,47431.0,47417.0,0.00120588]
[1633085107232,0.81994856,47432.0,47417.0,0.00120588]
[1633085107233,0.17707371,47432.0,47417.0,0.00120588]
[1633085107433,0.06139114,47450.0,47432.0,0.10855656]
[1633085107434,0.0072898,47443.0,47432.0,0.10855656]
[1633085107635,0.0072898,47443.0,47431.0,0.00124793]
[1633085107636,0.02,47450.0,47447.0,0.24678099]
[1633085107834,0.02,47450.0,47446.0,0.5]
[1633085108033,0.5,47447.0,47446.0,0.5]
[1633085108234,0.02,47450.0,47446.0,0.60962446]
[1633085108443,0.07089053,47449.0,47446.0,0.5]
[1633085108632,0.07089053,47449.0,47446.0,0.4964]
[1633085108633,0.8,47447.0,47446.0,0.4964]
[1633085108832,0.1472494,47447.0,47446.0,0.4954]
[1633085109039,0.02,47450.0,47446.0,0.2454]
[1633085109234,0.02,47450.0,47433.0,0.00122775]
[1633085109235,0.50128537,47447.0,47427.0,0.00124341]
[1633085109437,0.06001447,47446.0,47423.0,0.001269]
[1633085109638,0.06001447,47446.0,47407.0,0.00122757]
[1633085109639,0.5,47434.0,47407.0,0.00122757]
[1633085109836,0.09567634,47429.0,47415.0,0.00122026]
[1633085110036,0.07111507,47428.0,47413.0,0.00120003]
[1633085110236,0.07111507,47428.0,47409.0,0.07073539]
[1633085110237,0.07111507,47428.0,47409.0,0.07199205]
[1633085110440,0.07111507,47428.0,47382.0,0.00120347]
[1633085110441,0.36731287,47406.0,47382.0,0.00120347]
[1633085110742,0.36731287,47406.0,47354.0,0.00124452]
[1633085110743,0.55514199,47384.0,47354.0,0.00124452]
[1633085110939,0.55514199,47384.0,47335.0,0.12030613]
[1633085110940,0.00825068,47346.0,47327.0,0.0016347]
[1633085111136,0.21127931,47353.0,47343.0,1.5]
[1633085111137,0.08029664,47349.0,47343.0,1.5]
[1633085111341,0.08029664,47349.0,47343.0,1.475]
[1633085111342,0.09634342,47345.0,47343.0,1.475]
[1633085111542,0.32493388,47352.0,47343.0,1.475]
[1633085111543,0.00126745,47361.0,47343.0,1.47]
[1633085111740,0.77682337,47405.0,47345.0,0.00122282]
[1633085111741,0.09998004,47359.0,47345.0,0.00122282]
[1633085111940,0.04753027,47382.0,47343.0,1.47]
[1633085111941,0.00545678,47366.0,47363.0,0.00126196]
[1633085112137,0.211204,47374.0,47354.0,1.5]
[1633085112138,0.0475345,47364.0,47361.0,0.00123142]
[1633085112344,0.0475345,47364.0,47353.0,0.10191331]
[1633085112345,0.48960413,47362.0,47353.0,0.19736418]
[1633085112543,0.01835405,47383.0,47374.0,0.3048913]
[1633085112742,0.005,47394.0,47389.0,0.29225219]
[1633085112942,0.005,47394.0,47392.0,0.00120081]
[1633085113142,0.01160159,47390.0,47389.0,0.29225219]
[1633085113339,0.09256016,47390.0,47389.0,0.29225219]
[1633085113539,0.19034034,47390.0,47389.0,0.28225219]
[1633085113737,0.24685463,47390.0,47386.0,0.58623181]
[1633085113939,0.24685463,47390.0,47363.0,0.08640841]
[1633085113940,0.43626734,47386.0,47363.0,0.08640841]
[1633085114143,0.60318439,47366.0,47363.0,0.08640841]
[1633085114343,0.67241352,47366.0,47363.0,0.08640841]
[1633085114539,0.17241352,47366.0,47365.0,0.94517748]
[1633085114841,0.42385473,47377.0,47365.0,0.94517748]
[1633085114842,0.55,47381.0,47374.0,0.00124402]
[1633085115041,0.10236597,47408.0,47386.0,1.3587978]
[1633085115242,4.42588338,47422.0,47386.0,1.3587978]
[1633085115243,0.34357385,47414.0,47413.0,0.10148893]
[1633085115444,0.34357385,47414.0,47413.0,0.28142153]
[1633085115445,0.249,47414.0,47413.0,0.28142153]
[1633085115644,0.249,47414.0,47401.0,0.21224251]
[1633085115841,0.249,47414.0,47400.0,0.00129451]
[1633085115842,0.09240791,47413.0,47400.0,0.29145476]
[1633085116044,0.4996,47433.0,47426.0,0.52566568]
[1633085116252,1.293725,47450.0,47432.0,0.00124515]
[1633085116253,0.005,47435.0,47432.0,0.00124515]
[1633085116443,1.293725,47450.0,47435.0,0.003125]
[1633085116748,1.293725,47450.0,47449.0,0.00120486]
[1633085116943,1.293725,47450.0,47437.0,0.00122448]
[1633085116944,0.09131575,47449.0,47437.0,0.00122448]
[1633085117143,0.15326427,47448.0,47439.0,0.05]
[1633085117344,0.005,47454.0,47439.0,0.05]
[1633085117345,0.5,47459.0,47451.0,0.1183149]
[1633085117544,1.77062263,47429.0,47402.0,0.24]
[1633085117747,0.5,47426.0,47418.0,0.00125483]
[1633085117944,1.72062263,47429.0,47403.0,0.33]
[1633085117945,0.00762369,47422.0,47411.0,0.33108355]
[1633085118142,0.00594441,47422.0,47403.0,0.49636778]
[1633085118343,0.5,47409.0,47386.0,0.7543989]
[1633085118545,0.211132,47398.0,47386.0,0.7543989]
[1633085118744,0.211132,47398.0,47391.0,0.17522843]
[1633085118745,0.09671223,47398.0,47391.0,0.17522843]
[1633085118945,0.0875608,47421.0,47395.0,0.09806335]
[1633085119144,0.0875608,47421.0,47394.0,0.40199]
[1633085119145,0.5,47410.0,47394.0,0.40199]
[1633085119346,0.07354014,47395.0,47394.0,0.40199]
[1633085119545,0.50275633,47409.0,47394.0,0.40199]
[1633085119546,0.48936138,47409.0,47394.0,0.40199]
[1633085119744,0.09837991,47410.0,47395.0,0.31862329]
[1633085119942,0.0012125,47412.0,47395.0,0.31862329]
[1633085120144,0.0012125,47412.0,47394.0,0.40199]
[1633085120145,0.00127985,47396.0,47394.0,0.40199]
[1633085120343,0.00127985,47396.0,47386.0,0.7543989]
[1633085120344,0.09801,47394.0,47386.0,0.7543989]
[1633085120544,0.39078919,47393.0,47386.0,0.7493989]
[1633085120745,0.09801,47394.0,47387.0,0.28453368]
[1633085120944,0.09801,47394.0,47386.0,0.7493989]
[1633085120945,0.09761,47394.0,47386.0,0.7493989]
[1633085121146,0.0012087,47389.0,47380.0,0.0999]
[1633085121346,0.0012087,47389.0,47380.0,0.29578572]
[1633085121347,0.5,47385.0,47380.0,0.29578572]
[1633085121548,0.09640041,47387.0,47357.0,0.00127581]
[1633085121549,0.09519528,47387.0,47381.0,0.5]
[1633085121749,0.33341623,47392.0,47343.0,1.47]
[1633085121750,0.211214,47375.0,47343.0,1.47]
[1633085121951,0.53637504,47371.0,47343.0,1.47]
[1633085122148,0.53637504,47371.0,47328.0,0.08645623]
[1633085122149,0.24513258,47364.0,47328.0,0.08645623]
[1633085122347,0.24513258,47364.0,47328.0,0.0004]
[1633085122348,0.5,47351.0,47328.0,0.0004]
[1633085122547,0.11129536,47365.0,47353.0,0.31858653]
[1633085122548,0.5,47357.0,47353.0,0.31858653]
[1633085122750,1.03545328,47379.0,47353.0,0.31858653]
[1633085122751,0.5,47372.0,47371.0,0.24828275]
[1633085122948,0.09182782,47385.0,47373.0,0.11165993]
[1633085123148,0.09182782,47385.0,47353.0,0.31858653]
[1633085123149,0.00127863,47379.0,47353.0,0.31858653]
[1633085123412,0.5,47377.0,47357.0,0.34136106]
[1633085123550,0.0714703,47385.0,47368.0,0.00124]
[1633085123551,0.09668252,47385.0,47368.0,0.00124]
[1633085123748,0.15517934,47394.0,47385.0,0.00124965]
[1633085123749,0.316679,47390.0,47385.0,0.00124965]
[1633085123952,0.316679,47390.0,47365.0,0.00126391]
[1633085123953,0.5,47386.0,47365.0,0.00126391]
[1633085124148,0.00124128,47368.0,47356.0,0.21251221]
[1633085124348,0.5,47367.0,47356.0,0.21251221]
[1633085124555,0.00126899,47357.0,47334.0,2.11153032]
[1633085124754,0.50120641,47367.0,47358.0,0.21251221]
[1633085124951,0.00662542,47372.0,47367.0,0.50080641]
[1633085124952,0.00778467,47372.0,47367.0,0.50080641]
[1633085125149,0.09761,47394.0,47368.0,0.32539008]
[1633085125353,0.09761,47394.0,47367.0,0.50080641]
[1633085125354,0.00122175,47369.0,47367.0,0.50080641]
[1633085125550,0.5012783,47368.0,47367.0,0.07822341]
[1633085125752,0.05662771,47368.0,47367.0,0.07822341]
[1633085125953,0.05662771,47368.0,47336.0,0.0999]
[1633085125954,0.55907503,47358.0,47336.0,0.0999]
[1633085126151,0.00120121,47337.0,47336.0,0.0999]
[1633085126356,0.00120121,47337.0,47328.0,0.0004]
[1633085126357,0.22041245,47329.0,47328.0,0.0004]
[1633085126554,0.00598389,47328.0,47320.0,0.0004]
[1633085126748,0.0012646,47321.0,47320.0,0.0004]
[1633085126948,0.0012646,47321.0,47318.0,0.01697069]
[1633085126949,0.42078592,47319.0,47318.0,0.01697069]
[1633085127155,0.42078592,47319.0,47298.0,0.0004]
[1633085127156,0.40101523,47309.0,47298.0,0.0004]
[1633085127349,0.96601575,47309.0,47298.0,0.0004]
[1633085127550,0.57218808,47310.0,47307.0,0.21153073]
[1633085127752,0.9825,47324.0,47307.0,0.21153073]
[1633085127753,0.00767964,47320.0,47310.0,0.07218808]
[1633085127948,0.4996,47313.0,47310.0,0.07218808]
[1633085128148,0.00125776,47320.0,47310.0,0.07218808]
[1633085128149,0.50122969,47311.0,47310.0,0.07218808]
[1633085128347,0.97452011,47311.0,47310.0,0.07218808]
[1633085128550,0.901016,47311.0,47310.0,0.37047743]
[1633085128749,0.211455,47329.0,47310.0,0.37047743]
[1633085128750,0.0012175,47329.0,47312.0,0.98307011]
[1633085128950,0.00039155,47325.0,47313.0,0.40446593]
[1633085129150,0.0077171,47326.0,47313.0,0.40446593]
[1633085129416,0.5,47322.0,47312.0,0.98340301]
[1633085129755,0.50123097,47313.0,47312.0,0.98340301]
[1633085129954,0.57215337,47313.0,47312.0,0.13714801]
[1633085130149,0.57945002,47313.0,47312.0,0.13714801]
[1633085130353,0.87858383,47313.0,47312.0,0.02574801]
[1633085130551,0.00311896,47310.0,47308.0,0.0008]
[1633085130754,0.00228569,47309.0,47307.0,0.0004]
[1633085130950,0.00228569,47309.0,47304.0,0.0008]
[1633085130951,0.56778764,47309.0,47304.0,0.0008]
[1633085131152,0.00311896,47310.0,47309.0,1.05]
[1633085131153,0.00021287,47310.0,47309.0,1.05]
[1633085131350,0.18971426,47311.0,47309.0,2.3294058]
[1633085131351,0.03992713,47311.0,47309.0,2.3294058]
[1633085131550,1.14195759,47313.0,47309.0,2.3294058]
[1633085131551,1.14195759,47313.0,47311.0,1.5]
[1633085131751,0.00267035,47319.0,47309.0,0.50454131]
[1633085131752,0.55126772,47312.0,47309.0,0.5032955]
[1633085131953,0.00267035,47319.0,47309.0,0.5032955]
[1633085131954,0.06363912,47311.0,47309.0,0.5032955]
[1633085132149,0.06363912,47311.0,47304.0,0.0008]
[1633085132150,0.001299,47308.0,47304.0,0.0008]
[1633085132454,0.50120668,47306.0,47304.0,0.0008]
[1633085132652,0.56141642,47306.0,47301.0,0.0004]
[1633085132850,0.56141642,47306.0,47297.0,0.0008]
[1633085132851,0.00123189,47302.0,47297.0,0.0008]
[1633085133052,0.00525559,47305.0,47301.0,0.00122053]
[1633085133252,0.14235759,47314.0,47310.0,0.23117259]
[1633085133450,0.06554611,47320.0,47314.0,0.14235759]
[1633085133650,1.6,47315.0,47314.0,0.14235759]
[1633085133854,1.6,47315.0,47293.0,0.0008]
[1633085133855,0.09195964,47299.0,47293.0,0.0008]
[1633085134050,0.06488619,47298.0,47293.0,0.0008]
[1633085134250,0.37671153,47315.0,47293.0,1.3508]
[1633085134448,0.05803304,47316.0,47293.0,1.3508]
[1633085134449,0.317322,47303.0,47294.0,0.29992855]
[1633085134652,0.11563835,47302.0,47294.0,0.0004]
[1633085135055,0.08617857,47287.0,47283.0,0.0008]
[1633085135256,0.14423212,47287.0,47283.0,0.0008]
[1633085135457,0.14423212,47287.0,47277.0,0.00028549]
[1633085135458,0.07968874,47286.0,47277.0,0.00028549]
[1633085135655,0.55128648,47285.0,47276.0,0.0999]
[1633085135857,0.00080274,47277.0,47272.0,0.00917601]
[1633085136052,0.38377689,47284.0,47273.0,0.15]
[1633085136053,0.00123555,47278.0,47273.0,0.15]
[1633085136254,0.08617857,47287.0,47284.0,0.26988607]
[1633085136453,0.08617857,47287.0,47286.0,1.70644349]
[1633085136655,0.08617857,47287.0,47284.0,0.26988607]
[1633085136656,0.08577857,47287.0,47284.0,0.26988607]
[1633085136856,0.03577857,47287.0,47284.0,0.26988607]
[1633085137057,0.07001224,47313.0,47298.0,0.01223143]
[1633085137254,1.14463558,47328.0,47298.0,0.01223143]
[1633085137255,0.05045712,47322.0,47299.0,0.07724505]
[1633085137454,0.00124263,47327.0,47298.0,0.01223143]
[1633085137455,0.5,47318.0,47298.0,0.01223143]
[1633085137659,0.11,47325.0,47300.0,0.24316466]
[1633085137660,0.00126262,47303.0,47300.0,0.24316466]
[1633085137855,0.317324,47308.0,47292.0,0.23492742]
[1633085138055,0.317324,47308.0,47303.0,0.24805756]
[1633085138253,0.317324,47308.0,47293.0,0.00120421]
[1633085138519,0.529094,47310.0,47286.0,0.00129217]
[1633085138520,0.5,47298.0,47286.0,0.50639848]
[1633085138719,0.01252429,47300.0,47298.0,0.73011393]
[1633085138918,0.01212429,47300.0,47298.0,0.68568147]
[1633085139117,0.01212429,47300.0,47299.0,0.24845665]
[1633085139421,0.00012429,47300.0,47299.0,1.32926168]
[1633085139618,0.00012429,47300.0,47299.0,0.36760162]
[1633085139819,0.012,47299.0,47298.0,0.68440036]
[1633085140018,0.012,47299.0,47281.0,0.00125202]
[1633085140019,0.07361,47298.0,47281.0,0.00125202]
[1633085140225,0.07321,47298.0,47297.0,0.00120765]
[1633085140419,0.00129705,47309.0,47297.0,0.00120765]
[1633085140420,0.07767912,47317.0,47297.0,0.00120765]
[1633085140720,0.03422564,47308.0,47284.0,0.00122611]
[1633085140919,0.0012984,47290.0,47275.0,0.00122811]
[1633085141425,2.947e-05,47298.0,47282.0,1.5]
[1633085141620,0.00693331,47320.0,47298.0,0.09356451]
[1633085141823,0.5,47317.0,47297.0,0.00121716]
[1633085142019,0.0064797,47323.0,47293.0,0.3098991]
[1633085142020,0.012,47299.0,47293.0,0.3098991]
[1633085142223,0.012,47299.0,47292.0,0.85986872]
[1633085142421,0.08429407,47293.0,47292.0,0.85986872]
[1633085142821,0.08429407,47293.0,47275.0,0.32059882]
[1633085142822,0.00593208,47292.0,47275.0,0.32059882]
[1633085143021,0.00593208,47292.0,47274.0,0.29167478]
[1633085143022,0.01150843,47283.0,47274.0,0.29167478]
[1633085143219,0.00150843,47283.0,47273.0,0.145]
[1633085143418,0.00150843,47283.0,47272.0,0.00877601]
[1633085143621,0.07518155,47299.0,47272.0,0.00877601]
[1633085143622,0.05003095,47300.0,47274.0,1.5]
[1633085143822,0.740608,47315.0,47274.0,1.5]
[1633085143823,1.14463558,47319.0,47305.0,0.510364]
[1633085144019,1.14463558,47319.0,47312.0,0.00123465]
[1633085144020,0.07593767,47318.0,47312.0,0.00123465]
[1633085144221,0.07593767,47318.0,47305.0,0.510364]
[1633085144222,0.0105671,47306.0,47305.0,0.510364]
[1633085144421,0.0101671,47306.0,47305.0,0.510364]
[1633085144621,0.0101671,47306.0,47305.0,0.51162814]
[1633085145021,0.0101671,47306.0,47296.0,0.00593208]
[1633085145022,0.05,47305.0,47296.0,0.00593208]
[1633085145220,0.00068599,47305.0,47296.0,0.00593208]
[1633085145424,0.06773656,47305.0,47296.0,0.00593208]
[1633085145619,0.6527624,47306.0,47300.0,0.00122274]
[1633085145620,0.01653338,47306.0,47300.0,0.00122274]
[1633085145820,0.0161049,47306.0,47296.0,0.00593208]
[1633085146023,0.53599588,47322.0,47301.0,0.00122839]
[1633085146024,0.07260333,47320.0,47301.0,0.00122839]
[1633085146221,0.07220333,47320.0,47308.0,0.24508221]
[1633085146419,0.07220333,47320.0,47313.0,0.11301728]
[1633085146619,0.07220333,47320.0,47312.0,0.00120583]
[1633085146820,0.07220333,47320.0,47301.0,0.00127739]
[1633085146821,0.0097671,47314.0,47301.0,0.00127739]
[1633085147022,0.0097671,47314.0,47281.0,0.00132737]
[1633085147023,0.00124033,47304.0,47281.0,0.00132737]
[1633085147224,0.00593,47291.0,47273.0,0.00128452]
[1633085147431,0.4,47271.0,47265.0,0.00087]
[1633085147624,0.00128764,47279.0,47258.0,1.5]
[1633085147625,0.00123386,47273.0,47258.0,1.5]
[1633085147825,3.86e-06,47273.0,47270.0,0.05277062]
[1633085148024,0.423469,47277.0,47270.0,0.05277062]
[1633085148221,0.07893349,47276.0,47270.0,0.05277062]
[1633085148522,0.07139787,47275.0,47270.0,0.05277062]
[1633085148720,0.04014939,47275.0,47270.0,0.05277062]
[1633085148921,0.05,47278.0,47270.0,0.05277062]
[1633085149123,0.473361,47278.0,47275.0,0.09685379]
[1633085149321,0.05,47281.0,47271.0,0.27940594]
[1633085149521,0.211711,47285.0,47270.0,0.24242417]
[1633085149522,0.03792562,47279.0,47270.0,0.05277062]
[1633085149720,0.5,47282.0,47270.0,0.05277062]
[1633085149721,0.27474027,47281.0,47270.0,0.05277062]
[1633085149920,0.07711072,47278.0,47270.0,0.04777062]
[1633085150123,0.05970412,47277.0,47270.0,0.04777062]
[1633085150323,0.317095,47277.0,47273.0,0.1247062]
[1633085150525,0.5,47302.0,47291.0,1.97121225]
[1633085150729,0.5,47302.0,47295.0,0.00124932]
[1633085150922,0.07095065,47323.0,47314.0,0.24981963]
[1633085150923,0.06515276,47323.0,47314.0,0.24981963]
[1633085151224,0.00122364,47337.0,47314.0,0.24981963]
[1633085151225,0.06922235,47342.0,47322.0,0.0025134]
[1633085151425,0.05400554,47335.0,47322.0,0.0025134]
[1633085151624,0.505,47324.0,47322.0,0.00123877]
[1633085151823,0.04725275,47323.0,47312.0,0.00125282]
[1633085152022,0.05207155,47323.0,47312.0,0.00125282]
[1633085152224,0.05207155,47323.0,47302.0,0.04074474]
[1633085152225,0.28822172,47313.0,47302.0,0.04074474]
[1633085152424,0.711522,47319.0,47302.0,0.04074474]
[1633085152425,1.38826977,47303.0,47302.0,0.04074474]
[1633085152623,1.38826977,47303.0,47278.0,0.3875229]
[1633085152624,0.04603142,47292.0,47285.0,0.0012371]
[1633085152926,0.04603142,47292.0,47278.0,0.3843979]
[1633085152927,0.10761798,47291.0,47278.0,0.3843979]
[1633085153125,0.05384023,47292.0,47278.0,0.38565439]
[1633085153126,0.04603142,47292.0,47278.0,0.38565439]
[1633085153330,1.42e-06,47292.0,47291.0,1.83389599]
[1633085153525,1.42e-06,47292.0,47291.0,2.05660351]
[1633085153727,0.3017527,47331.0,47291.0,2.05660351]
[1633085153728,0.5,47329.0,47292.0,0.219003]
[1633085153925,0.5,47329.0,47291.0,1.83760051]
[1633085153926,0.5,47314.0,47308.0,0.00120728]
[1633085154125,0.10870278,47313.0,47296.0,0.10394028]
[1633085154325,0.10870278,47313.0,47304.0,0.00126383]
[1633085154525,0.10870278,47313.0,47293.0,0.38647395]
[1633085154526,0.00086811,47308.0,47293.0,0.38647395]
[1633085154725,0.55698754,47306.0,47291.0,0.33389599]
[1633085154929,0.32019966,47319.0,47289.0,0.00125325]
[1633085154930,0.01835405,47330.0,47329.0,0.91139218]
[1633085155131,0.00108,47352.0,47340.0,7.55513806]
[1633085155132,0.04538195,47350.0,47340.0,7.55513806]
[1633085155329,0.01063968,47344.0,47341.0,0.37014839]
[1633085155530,0.005,47344.0,47343.0,0.00129719]
[1633085155730,0.005,47344.0,47291.0,0.06067804]
[1633085155731,1.17408571,47340.0,47291.0,0.06067804]
[1633085155933,1.17408571,47340.0,47304.0,0.38547422]
[1633085155934,0.10910639,47325.0,47304.0,0.38547422]
[1633085156128,0.10910639,47325.0,47291.0,0.1912121]
[1633085156129,0.10910639,47325.0,47318.0,0.00128239]
[1633085156330,0.5,47332.0,47308.0,0.00123898]
[1633085156331,0.38416651,47324.0,47308.0,0.00123898]
[1633085156528,0.38416651,47324.0,47317.0,0.0306634]
[1633085156529,1.5,47318.0,47317.0,0.0306634]
[1633085156729,0.00127491,47324.0,47317.0,0.0306634]
[1633085156935,0.11821962,47339.0,47320.0,0.07727041]
[1633085156936,0.317177,47322.0,47320.0,0.07727041]
[1633085157128,0.528749,47333.0,47321.0,0.00123955]
[1633085157129,0.60010707,47333.0,47321.0,0.00123955]
[1633085157531,0.60010707,47333.0,47332.0,0.00123669]
[1633085157532,0.528749,47333.0,47332.0,0.00123669]
[1633085157729,0.528749,47333.0,47324.0,0.00128661]
[1633085157930,0.2499,47339.0,47324.0,0.00128661]
[1633085158133,0.317092,47331.0,47324.0,0.00128661]
[1633085158329,0.08834789,47334.0,47324.0,0.00128661]
[1633085158537,0.422765,47338.0,47333.0,0.00120667]
[1633085158731,0.2499,47339.0,47333.0,0.00120667]
[1633085158931,0.2499,47339.0,47338.0,0.00129714]
[1633085159531,0.08391545,47334.0,47329.0,0.00126464]
[1633085159732,0.27863454,47333.0,47317.0,0.0306634]
[1633085159931,0.27863454,47333.0,47319.0,4.44e-06]
[1633085159932,0.5,47324.0,47319.0,4.44e-06]
[1633085160132,0.5,47324.0,47317.0,3.4e-06]
[1633085160133,0.317267,47320.0,47317.0,3.4e-06]
[1633085160332,0.317267,47320.0,47318.0,0.2232]
[1633085160333,0.05717503,47319.0,47318.0,0.2232]
[1633085160532,1.181,47320.0,47318.0,0.00129099]
[1633085160729,1.181,47320.0,47317.0,3.4e-06]
[1633085160928,1.181,47320.0,47317.0,0.00125171]
[1633085161136,1.181,47320.0,47300.0,0.04408431]
[1633085161137,0.04603,47309.0,47300.0,0.042836]
[1633085161335,0.00125783,47302.0,47301.0,0.00189]
[1633085161834,0.3,47304.0,47301.0,0.3112135]
[1633085162032,0.3,47304.0,47286.0,0.00949335]
[1633085162033,0.47924297,47301.0,47286.0,0.00949335]
[1633085162234,0.47924297,47301.0,47276.0,0.12172852]
[1633085162235,0.00122515,47287.0,47273.0,0.06086598]
[1633085162438,0.00122515,47287.0,47268.0,0.12173197]
[1633085162439,0.09854836,47256.0,47255.0,0.0012]
[1633085162637,0.09854836,47256.0,47248.0,0.001]
[1633085162638,0.04187036,47255.0,47248.0,0.001]
[1633085162835,0.04187036,47255.0,47244.0,0.0004]
[1633085162836,0.61329054,47245.0,47244.0,0.0004]
[1633085163034,1.99429054,47245.0,47244.0,0.0004]
[1633085163233,2.97400528,47245.0,47243.0,0.0008]
[1633085163435,3.39219545,47245.0,47243.0,0.0008]
[1633085163638,0.00123128,47244.0,47243.0,0.0008]
[1633085163836,0.30045388,47244.0,47243.0,0.0008]
[1633085164035,0.30045388,47244.0,47235.0,0.2112]
[1633085164036,1.5024,47241.0,47235.0,0.2112]
[1633085164236,1.5024,47241.0,47220.0,0.05802]
[1633085164237,0.05559836,47230.0,47220.0,0.0012]
[1633085164435,0.05559836,47230.0,47218.0,0.0009]
[1633085164436,0.37046884,47220.0,47218.0,0.0009]
[1633085164636,0.00247491,47225.0,47209.0,0.00050001]
[1633085164637,0.20125807,47219.0,47209.0,0.00050001]
[1633085164837,0.05559836,47230.0,47220.0,0.07006884]
[1633085165037,1.181,47245.0,47229.0,0.00120784]
[1633085165237,0.5,47256.0,47231.0,0.00124741]
[1633085165238,0.01106048,47240.0,47231.0,0.00124741]
[1633085165434,0.12413044,47241.0,47226.0,0.00128328]
[1633085165738,0.09583273,47225.0,47221.0,0.29514999]
[1633085165934,0.00125735,47229.0,47219.0,0.17732504]
[1633085166139,0.00057349,47229.0,47219.0,0.17732504]
[1633085166337,0.00122863,47222.0,47219.0,0.17732504]
[1633085166535,0.37065077,47229.0,47219.0,0.13732504]
[1633085166739,0.37065077,47229.0,47211.0,0.22447153]
[1633085166740,1.11756025,47228.0,47211.0,0.22447153]
[1633085166938,0.3,47232.0,47208.0,0.0012]
[1633085166939,0.5,47227.0,47223.0,0.00128605]
[1633085167135,0.5,47227.0,47226.0,0.0012884]
[1633085167136,0.8,47227.0,47226.0,0.0012884]
[1633085167335,0.09747908,47221.0,47208.0,0.0012]
[1633085167538,1.39174852,47214.0,47208.0,0.0012]
[1633085167735,0.5,47227.0,47221.0,1.63732504]